bitfinex-derivatives/quotes_BTCF0:USTF0_20241226
["timestamp","ask_amount","ask_price","bid_price","bid_amount"]
[1735227017533,0.5471,96139.0,96126.0,0.052069]
[1735227017831,0.5461,96139.0,96119.0,0.052073]
[1735227018038,0.00156037,96166.0,96112.0,0.85196]
[1735227018239,0.5325,96165.0,96130.0,0.16245999]
[1735227018538,0.16245999,96160.0,96125.0,0.05207]
[1735227018742,0.002,96132.0,96120.0,0.16245999]
[1735227019040,0.002,96132.0,96112.0,0.55196]
[1735227019041,0.002,96132.0,96121.0,0.001]
[1735227019428,0.2656,96144.0,96121.0,0.001]
[1735227019629,0.2669,96143.0,96125.0,0.007]
[1735227019829,0.052061,96141.0,96125.0,0.007]
[1735227020034,0.16245999,96140.0,96125.0,0.007]
[1735227020370,0.001,96132.0,96121.0,0.001]
[1735227020531,0.16245999,96130.0,96121.0,0.001]
[1735227020731,0.2871,96131.0,96121.0,0.001]
[1735227020934,0.001,96132.0,96121.0,0.001]
[1735227021628,0.001,96132.0,96122.0,0.2731]
[1735227021826,0.001,96132.0,96125.0,0.052069]
[1735227022031,0.5801,96156.0,96123.0,0.1729]
[1735227022230,0.5801,96156.0,96130.0,0.16245999]
[1735227022533,0.001,96132.0,96130.0,0.16245999]
[1735227022754,0.001,96132.0,96127.0,0.052069]
[1735227023135,0.01,96228.0,96127.0,0.052069]
[1735227023136,0.15498031,96174.0,96128.0,0.1729]
[1735227023351,0.15498031,96174.0,96150.0,0.16245999]
[1735227023539,0.001,96173.0,96151.0,0.2922]
[1735227024047,0.001,96173.0,96160.0,0.16245999]
[1735227026139,0.011,96173.0,96160.0,0.16345999]
[1735227026740,0.15498031,96195.0,96168.0,0.052046]
[1735227026939,0.13541176,96195.0,96185.0,0.16245999]
[1735227027139,0.13697144,96199.0,96185.0,0.16245999]
[1735227027745,0.13541176,96199.0,96185.0,0.46245999]
[1735227027934,0.13541176,96199.0,96180.0,0.34968]
[1735227028344,0.13541176,96199.0,96180.0,0.39923822]
[1735227028534,0.006,96195.0,96180.0,0.56169821]
[1735227029045,0.004,96195.0,96180.0,0.39923822]
[1735227029238,0.544,96199.0,96180.0,0.39923822]
[1735227029850,0.544,96199.0,96180.0,0.56169821]
[1735227029851,0.002,96199.0,96180.0,0.56169821]
[1735227030143,0.001,96195.0,96180.0,0.56169821]
[1735227030347,0.001,96195.0,96180.0,0.39923822]
[1735227031448,0.001,96195.0,96180.0,0.56169821]
[1735227031650,0.002,96199.0,96180.0,0.56169821]
[1735227032146,0.002,96199.0,96180.0,0.39923822]
[1735227032147,0.001,96199.0,96180.0,0.39923822]
[1735227032443,0.002,96195.0,96180.0,0.39923822]
[1735227032747,0.001,96195.0,96180.0,0.39923822]
[1735227033052,0.001,96195.0,96180.0,0.56169821]
[1735227033342,0.001,96199.0,96180.0,0.56169821]
[1735227033954,0.001,96199.0,96180.0,0.39923822]
[1735227034445,0.001,96199.0,96180.0,0.56169821]
[1735227034639,0.001,96195.0,96180.0,0.56169821]
[1735227035258,0.001,96199.0,96180.0,0.56169821]
[1735227035940,0.025,96200.0,96180.0,0.56169821]
[1735227036448,0.025,96200.0,96190.0,0.16245999]
[1735227037950,0.026,96200.0,96190.0,0.16245999]
[1735227038449,0.027,96200.0,96181.0,0.2653]
[1735227038749,0.029,96200.0,96181.0,0.2653]
[1735227039144,0.03,96200.0,96181.0,0.2653]
[1735227039748,0.029,96200.0,96181.0,0.2653]
[1735227040048,0.029,96200.0,96180.0,0.39975822]
[1735227040248,0.029,96200.0,96180.0,0.39923822]
[1735227040452,0.029,96200.0,96180.0,0.56169821]
[1735227040747,0.027,96200.0,96190.0,0.16245999]
[1735227040942,0.027,96200.0,96191.0,0.2892]
[1735227041165,0.026,96200.0,96191.0,0.2892]
[1735227041656,0.027,96200.0,96191.0,0.2892]
[1735227041952,0.028,96200.0,96191.0,0.2892]
[1735227042155,0.03,96200.0,96191.0,0.2892]
[1735227044652,0.03,96200.0,96192.0,0.2943]
[1735227044842,0.00155912,96228.0,96192.0,0.2943]
[1735227045043,0.00096001,96230.0,96218.0,0.16245999]
[1735227045249,0.09297714,96233.0,96219.0,0.5427]
[1735227045453,0.09297714,96233.0,96200.0,0.16245999]
[1735227045454,0.09297714,96233.0,96204.0,0.052026]
[1735227045752,0.16245999,96240.0,96204.0,0.052026]
[1735227045944,0.09297714,96241.0,96210.0,0.16245999]
[1735227046545,0.09297714,96241.0,96211.0,0.052023]
[1735227047151,0.16245999,96230.0,96201.0,0.619088]
[1735227047353,0.5524,96229.0,96201.0,0.618528]
[1735227047751,0.16245999,96220.0,96192.0,0.24703768]
[1735227047943,0.8524,96229.0,96192.0,0.24651768]
[1735227047944,0.16245999,96210.0,96192.0,0.24651768]
[1735227048250,0.05202,96216.0,96201.0,0.001]
[1735227048847,0.3,96216.0,96201.0,0.001]
[1735227049054,0.052023,96211.0,96201.0,0.001]
[1735227049347,0.052019,96219.0,96201.0,0.001]
[1735227049551,0.003,96220.0,96201.0,0.001]
[1735227049748,0.16545999,96220.0,96201.0,0.001]
[1735227050258,0.09297714,96216.0,96201.0,0.001]
[1735227050752,0.09297714,96216.0,96192.0,0.05092723]
[1735227050753,0.09797714,96216.0,96192.0,0.05092723]
[1735227050953,0.09797714,96216.0,96201.0,0.001]
[1735227051550,0.09297714,96209.0,96201.0,0.001]
[1735227051947,0.09297714,96209.0,96184.0,0.05263377]
[1735227052249,0.09297714,96209.0,96177.0,0.34948]
[1735227052855,0.09297714,96203.0,96177.0,0.34948]
[1735227053051,0.5525,96202.0,96201.0,0.001]
[1735227053451,0.8355,96202.0,96201.0,0.001]
[1735227054052,0.052032,96195.0,96177.0,0.34948]
[1735227054358,0.16245999,96200.0,96177.0,0.05144216]
[1735227054660,0.84146001,96202.0,96177.0,0.001]
[1735227054846,0.8405,96202.0,96177.0,0.001]
[1735227055049,0.8405,96202.0,96201.0,0.001]
[1735227055251,0.8355,96202.0,96201.0,0.001]
[1735227055652,0.8355,96202.0,96177.0,0.001]
[1735227055861,0.16245999,96200.0,96177.0,0.001]
[1735227056165,0.8355,96202.0,96201.0,0.001]
[1735227056166,0.8365,96202.0,96201.0,0.001]
[1735227056354,0.8355,96202.0,96201.0,0.001]
[1735227057060,0.8405,96202.0,96201.0,0.001]
[1735227057752,0.8405,96202.0,96177.0,0.001]
[1735227058261,0.16245999,96200.0,96170.0,0.00052]
[1735227058462,0.16245999,96200.0,96169.0,0.24651768]
[1735227058764,0.16245999,96190.0,96169.0,0.24651768]
[1735227058960,0.05203,96199.0,96177.0,0.001]
[1735227059163,0.16245999,96200.0,96177.0,0.001]
[1735227059361,0.99703081,96202.0,96170.0,0.16245999]
[1735227059557,0.9960708,96202.0,96170.0,0.004]
[1735227059865,0.0933402,96188.0,96170.0,0.004]
[1735227060159,0.0933402,96188.0,96173.0,0.052043]
[1735227060362,0.1555708,96199.0,96180.0,0.05204]
[1735227060363,0.14219605,96199.0,96180.0,0.05204]
[1735227060560,0.2954,96218.0,96189.0,0.16245999]
[1735227060761,0.2954,96218.0,96190.0,0.50399399]
[1735227060980,0.2954,96218.0,96191.0,0.052034]
[1735227061175,0.2954,96218.0,96192.0,0.34952]
[1735227061571,0.001,96199.0,96192.0,0.34952]
[1735227062279,0.001,96199.0,96192.0,0.05251052]
[1735227062475,0.2876,96198.0,96182.0,0.36991664]
[1735227062775,0.052035,96189.0,96182.0,0.36991664]
[1735227063093,0.052038,96183.0,96182.0,0.36991664]
[1735227063277,0.16245999,96182.0,96172.0,0.05378901]
[1735227064082,0.052038,96183.0,96172.0,0.05378901]
[1735227064277,0.052038,96185.0,96172.0,0.05378901]
[1735227064478,0.16245999,96182.0,96172.0,0.05378901]
[1735227064703,0.05204,96180.0,96172.0,0.05378901]
[1735227065082,0.2876,96198.0,96172.0,0.05378901]
[1735227065083,0.16245999,96190.0,96172.0,0.05378901]
[1735227065279,0.052032,96195.0,96172.0,0.05478901]
[1735227065480,0.2876,96198.0,96172.0,0.05478901]
[1735227065787,0.2873,96197.0,96172.0,0.05478901]
[1735227066085,0.052029,96202.0,96172.0,0.05478901]
[1735227066086,0.05358363,96209.0,96178.0,0.052041]
[1735227066378,0.2873,96208.0,96187.0,0.052036]
[1735227066583,0.2873,96208.0,96180.0,0.16245999]
[1735227066584,0.05059852,96196.0,96188.0,0.289]
[1735227067885,0.05259852,96196.0,96188.0,0.289]
[1735227068186,0.002,96196.0,96188.0,0.289]
[1735227068983,0.2873,96208.0,96188.0,0.289]
[1735227069589,0.16245999,96200.0,96174.0,0.18482894]
[1735227069776,0.16245999,96190.0,96174.0,0.18482894]
[1735227069982,0.052038,96185.0,96174.0,0.18482894]
[1735227070180,0.292,96184.0,96174.0,0.18482894]
[1735227070385,0.292,96184.0,96175.0,0.18482894]
[1735227071389,0.052041,96179.0,96175.0,0.18482894]
[1735227071786,0.052041,96179.0,96174.0,0.05302471]
[1735227071787,0.052041,96179.0,96174.0,0.05202471]
[1735227071988,0.2758,96183.0,96155.0,0.18482894]
[1735227072180,0.052044,96174.0,96155.0,0.18482894]
[1735227072377,0.052045,96171.0,96155.0,0.18482894]
[1735227072578,0.16245999,96170.0,96155.0,0.18482894]
[1735227072786,0.16245999,96170.0,96155.0,0.23780069]
[1735227072992,0.46245999,96170.0,96151.0,0.0015596]
[1735227073289,0.16245999,96161.0,96155.0,0.007]
[1735227073546,0.2952,96160.0,96155.0,0.007]
[1735227073786,0.2952,96160.0,96151.0,0.0015596]
[1735227073979,0.2952,96160.0,96155.0,0.006]
[1735227074375,0.2983,96159.0,96125.0,0.18482894]
[1735227074575,0.052052,96158.0,96125.0,0.18482894]
[1735227074787,0.2983,96159.0,96125.0,0.23689794]
[1735227075083,0.2983,96159.0,96141.0,0.40283355]
[1735227075490,0.052052,96158.0,96141.0,0.40283355]
[1735227075879,0.052053,96157.0,96151.0,0.002]
[1735227076187,0.052055,96152.0,96151.0,0.002]
[1735227076575,0.2983,96159.0,96151.0,0.002]
[1735227076783,0.2952,96160.0,96151.0,0.002]
[1735227076984,0.16245999,96170.0,96141.0,0.005]
[1735227077183,0.2964,96169.0,96142.0,0.2843]
[1735227077387,0.12426243,96154.0,96143.0,0.2808]
[1735227077888,0.001,96159.0,96143.0,0.2808]
[1735227079192,0.16245999,96160.0,96143.0,0.2808]
[1735227079684,0.16245999,96160.0,96143.0,0.2848]
[1735227079885,0.16245999,96160.0,96143.0,0.33757829]
[1735227080085,0.16245999,96160.0,96143.0,0.05677829]
[1735227080393,0.46245999,96160.0,96143.0,0.05677829]
[1735227080591,0.46245999,96160.0,96143.0,0.004]
[1735227080592,0.052059,96145.0,96143.0,0.004]
[1735227080788,0.8628,96144.0,96143.0,0.004]
[1735227081293,0.052065,96135.0,96123.0,0.18453441]
[1735227081520,0.21452599,96133.0,96123.0,0.18453441]
[1735227081794,0.21452599,96133.0,96111.0,0.47033441]
[1735227081994,0.16245999,96133.0,96111.0,0.47033441]
[1735227082587,0.16245999,96133.0,96123.0,0.005]
[1735227082989,0.16245999,96133.0,96111.0,0.47033441]
[1735227083188,0.16245999,96133.0,96121.0,0.00356006]
[1735227083396,0.16245999,96133.0,96121.0,0.05617694]
[1735227083589,0.16245999,96133.0,96121.0,0.00356006]
[1735227083791,0.16245999,96133.0,96123.0,0.001]
[1735227083993,0.28904,96144.0,96123.0,0.001]
[1735227084295,0.2884,96144.0,96124.0,0.2808]
[1735227084483,0.124091,96143.0,96124.0,0.2808]
[1735227085797,0.16245999,96140.0,96124.0,0.2808]
[1735227087093,0.2884,96144.0,96124.0,0.2808]
[1735227087286,0.16245999,96150.0,96124.0,0.2808]
[1735227087489,0.124091,96153.0,96124.0,0.2808]
[1735227087490,0.124091,96153.0,96124.0,0.33302497]
[1735227087796,0.124091,96153.0,96129.0,0.052068]
[1735227087991,0.16245999,96150.0,96124.0,0.33302497]
[1735227088392,0.16245999,96140.0,96124.0,0.33802497]
[1735227088991,0.28,96139.0,96129.0,0.003]
[1735227089200,0.052065,96134.0,96129.0,0.003]
[1735227089394,0.052065,96134.0,96121.0,0.00156006]
[1735227089588,0.16245999,96131.0,96124.0,0.005]
[1735227089997,0.16245999,96131.0,96121.0,0.05388918]
[1735227090198,0.16245999,96131.0,96129.0,0.002]
[1735227090384,0.052067,96131.0,96129.0,0.002]
[1735227090592,0.052071,96122.0,96121.0,0.00156006]
[1735227090796,0.46245999,96131.0,96099.0,0.2764]
[1735227091001,0.16245999,96131.0,96100.0,0.15240547]
[1735227091194,0.052068,96129.0,96121.0,0.001]
[1735227091702,0.052069,96126.0,96124.0,0.001]
[1735227091998,0.46245999,96131.0,96100.0,0.1]
[1735227092302,0.16245999,96110.0,96100.0,0.108]
[1735227092693,0.16245999,96110.0,96100.0,0.16307229]
[1735227093002,0.052083,96102.0,96100.0,0.15507229]
[1735227093197,0.052083,96102.0,96100.0,0.104]
[1735227093394,0.3,96102.0,96080.0,0.18448938]
[1735227093607,0.16245999,96090.0,96080.0,0.18448938]
[1735227093791,0.16245999,96090.0,96080.0,0.23700422]
[1735227094097,0.052091,96087.0,96080.0,0.0526293]
[1735227094289,0.2884,96086.0,96080.0,0.0526293]
[1735227094494,0.2844,96086.0,96080.0,0.0526293]
[1735227094693,0.2844,96086.0,96080.0,0.05251484]
[1735227094898,0.2844,96086.0,96079.0,0.00156062]
[1735227095199,0.052093,96082.0,96080.0,0.003]
[1735227095408,0.2827,96089.0,96050.0,0.3]
[1735227095409,0.052098,96073.0,96050.0,0.3]
[1735227095590,0.16245999,96080.0,96050.0,0.35117124]
[1735227095796,0.052097,96076.0,96050.0,0.35117124]
[1735227095997,0.16245999,96070.0,96050.0,0.35117124]
[1735227096198,0.16245999,96060.0,96050.0,0.35117124]
[1735227096999,0.16245999,96060.0,96050.0,0.35417124]
[1735227097200,0.16245999,96060.0,96050.0,0.05417124]
[1735227097599,0.05211,96051.0,96050.0,0.003]
[1735227097902,0.16245999,96060.0,96050.0,0.008]
[1735227098394,0.16245999,96060.0,96050.0,0.006]
[1735227098395,0.16345999,96060.0,96050.0,0.006]
[1735227098996,0.16345999,96060.0,96050.0,0.002]
[1735227098997,0.16245999,96060.0,96050.0,0.002]
[1735227099192,0.16245999,96060.0,96050.0,0.005]
[1735227099907,0.16245999,96060.0,96050.0,0.003]
[1735227100903,0.45995999,96080.0,96050.0,0.04705188]
[1735227101109,0.2975,96080.0,96050.0,0.20951187]
[1735227101298,0.2975,96080.0,96051.0,0.5737]
[1735227101497,0.12417616,96060.0,96051.0,0.5737]
[1735227101699,0.46067999,96080.0,96051.0,0.5737]
[1735227101900,0.29822,96080.0,96056.0,0.052107]
[1735227102202,0.00072,96080.0,96071.0,0.052098]
[1735227102403,0.24991402,96090.0,96071.0,0.052098]
[1735227102404,0.12420635,96075.0,96071.0,0.052098]
[1735227102704,0.00156169,96090.0,96070.0,0.16245999]
[1735227102906,0.00228169,96090.0,96060.0,0.16245999]
[1735227103105,0.16402168,96090.0,96053.0,0.052108]
[1735227103410,0.00156169,96090.0,96053.0,0.052108]
[1735227103911,0.00156169,96090.0,96060.0,0.16245999]
[1735227104707,0.00256169,96090.0,96053.0,0.061108]
[1735227105109,0.00256169,96090.0,96071.0,0.001]
[1735227105296,0.12579456,96090.0,96071.0,0.001]
[1735227105498,0.16245999,96081.0,96071.0,0.001]
[1735227105714,0.052098,96074.0,96071.0,0.001]
[1735227105901,0.052098,96073.0,96071.0,0.001]
[1735227106210,0.8709,96080.0,96053.0,0.008]
[1735227106410,0.16245999,96070.0,96053.0,0.008]
[1735227106598,0.052105,96061.0,96053.0,0.05088846]
[1735227106909,0.16245999,96070.0,96053.0,0.05088846]
[1735227106910,0.052105,96060.0,96053.0,0.04888846]
[1735227107310,0.052107,96057.0,96053.0,0.006]
[1735227108110,0.052107,96057.0,96051.0,0.00156131]
[1735227108602,0.052107,96057.0,96053.0,0.001]
[1735227110113,0.052108,96054.0,96053.0,0.001]
[1735227110310,0.052109,96053.0,96051.0,0.00356131]
[1735227110502,0.2965,96056.0,96051.0,0.00356131]
[1735227110699,0.12425822,96073.0,96051.0,0.00356131]
[1735227110906,0.052101,96068.0,96053.0,0.001]
[1735227111307,0.12425822,96073.0,96053.0,0.001]
[1735227111507,0.2874,96080.0,96051.0,0.05367131]
[1735227111703,0.2874,96080.0,96051.0,0.33957131]
[1735227112011,0.339494,96080.0,96051.0,0.33957131]
[1735227112212,0.2874,96080.0,96053.0,0.001]
[1735227112405,0.052095,96078.0,96053.0,0.001]
[1735227113703,0.052095,96078.0,96051.0,0.28746131]
[1735227114407,0.052095,96078.0,96053.0,0.001]
[1735227114809,0.45053999,96080.0,96051.0,0.28546131]
[1735227115007,0.052098,96074.0,96051.0,0.28746131]
[1735227115410,0.16245999,96070.0,96051.0,0.00456131]
[1735227115809,0.16245999,96061.0,96051.0,0.00456131]
[1735227116013,0.052106,96059.0,96051.0,0.00356131]
[1735227116317,0.052109,96053.0,96051.0,0.00456131]
[1735227116503,0.275,96060.0,96051.0,0.00256131]
[1735227116711,0.052102,96066.0,96053.0,0.001]
[1735227117123,0.052102,96066.0,96051.0,0.001]
[1735227117316,0.16245999,96061.0,96051.0,0.002]
[1735227117613,0.16245999,96061.0,96051.0,0.004]
[1735227117808,0.16245999,96061.0,96053.0,0.001]
[1735227118321,0.16245999,96061.0,96051.0,0.002]
[1735227118613,0.052107,96057.0,96051.0,0.004]
[1735227118921,0.052107,96057.0,96051.0,0.002]
[1735227119112,0.052107,96057.0,96051.0,0.003]
[1735227119718,0.16245999,96061.0,96051.0,0.002]
[1735227120023,0.16245999,96061.0,96031.0,0.29676186]
[1735227120024,0.052112,96047.0,96031.0,0.29676186]
[1735227120418,0.052113,96045.0,96031.0,0.2952]
[1735227120816,0.16245999,96050.0,96031.0,0.2952]
[1735227121219,0.12382079,96046.0,96031.0,0.2952]
[1735227121412,0.12382079,96046.0,96033.0,0.287]
[1735227121820,0.12382079,96046.0,96033.0,0.33912172]
[1735227122014,0.001,96047.0,96033.0,0.33912172]
[1735227122511,0.001,96047.0,96033.0,0.34212172]
[1735227123017,0.2897,96049.0,96033.0,0.34212172]
[1735227123617,0.001,96047.0,96033.0,0.34212172]
[1735227123917,0.053112,96047.0,96033.0,0.34212172]
[1735227124120,0.052112,96047.0,96033.0,0.34212172]
[1735227125119,0.052108,96055.0,96033.0,0.33512172]
[1735227125427,0.052108,96055.0,96033.0,0.06212172]
[1735227125428,0.12455857,96038.0,96033.0,0.06212172]
[1735227125621,0.12455857,96038.0,96034.0,0.2929]
[1735227126927,0.12455857,96035.0,96034.0,0.2929]
[1735227127425,0.052108,96054.0,96034.0,0.2929]
[1735227127426,0.052105,96061.0,96034.0,0.2999]
[1735227127723,0.052101,96068.0,96034.0,0.2999]
[1735227127919,0.052101,96068.0,96034.0,0.2929]
[1735227128119,0.001,96035.0,96034.0,0.2999]
[1735227128524,0.001,96035.0,96034.0,0.01]
[1735227129517,0.001,96035.0,96034.0,0.003]
[1735227129719,0.052118,96036.0,96034.0,0.01]
[1735227130119,0.3131,96044.0,96033.0,0.05212172]
[1735227130120,0.050119,96034.0,96033.0,0.05212172]
[1735227130314,0.045119,96034.0,96018.0,0.18576565]
[1735227131224,0.15589817,96039.0,96018.0,0.23898502]
[1735227131427,0.16245999,96030.0,96018.0,0.23898502]
[1735227131623,0.12470436,96021.0,96018.0,0.05321937]
[1735227131828,0.12270436,96021.0,96016.0,0.2777]
[1735227132027,0.052117,96039.0,96016.0,0.2777]
[1735227132827,0.3186,96049.0,96016.0,0.2777]
[1735227132828,0.001,96030.0,96018.0,0.004]
[1735227133227,0.16345999,96030.0,96018.0,0.004]
[1735227133430,0.052123,96028.0,96016.0,0.05631762]
[1735227133628,0.052123,96028.0,96016.0,0.004]
[1735227134227,0.052123,96026.0,96016.0,0.004]
[1735227134528,0.001,96039.0,96017.0,0.3135]
[1735227134715,0.001,96039.0,96020.0,0.16245999]
[1735227134919,0.001,96039.0,96024.0,0.052124]
[1735227135119,0.001,96039.0,96020.0,0.16245999]
[1735227135120,0.15583015,96031.0,96025.0,0.319]
[1735227136532,0.001,96039.0,96025.0,0.319]
[1735227136730,0.14382016,96047.0,96025.0,0.319]
[1735227137533,0.2963,96059.0,96025.0,0.319]
[1735227138234,0.3002,96052.0,96025.0,0.319]
[1735227138636,0.3002,96052.0,96025.0,0.37183979]
[1735227139134,0.052113,96046.0,96025.0,0.37183979]
[1735227139435,0.052113,96046.0,96025.0,0.37283979]
[1735227139638,0.16245999,96040.0,96025.0,0.37283979]
[1735227139835,0.16245999,96040.0,96025.0,0.05583979]
[1735227140235,0.16245999,96040.0,96025.0,0.05383979]
[1735227140426,0.16245999,96040.0,96025.0,0.05583979]
[1735227141242,0.052123,96027.0,96025.0,0.05583979]
[1735227141428,0.6093,96026.0,96025.0,0.05383979]
[1735227141628,0.6093,96026.0,96025.0,0.05483979]
[1735227142631,0.6093,96026.0,96025.0,0.05383979]
[1735227142831,0.6113,96026.0,96025.0,0.05383979]
[1735227143533,0.6113,96026.0,96025.0,0.05283979]
[1735227143732,0.6153,96026.0,96001.0,0.3119]
[1735227144031,0.667424,96026.0,96001.0,0.3119]
[1735227144231,0.16245999,96011.0,96000.0,0.1]
[1735227144529,0.16245999,96020.0,96000.0,0.15258494]
[1735227144732,0.16245999,96010.0,96000.0,0.15258494]
[1735227144936,0.052135,96005.0,96000.0,0.15258494]
[1735227145238,0.3195,96004.0,96000.0,0.15258494]
[1735227145542,0.3195,96004.0,96000.0,0.15358494]
[1735227145943,0.3171,96025.0,96000.0,0.15358494]
[1735227146138,0.49974472,96026.0,96001.0,0.9331]
[1735227146442,0.001,96011.0,96001.0,0.9331]
[1735227146741,0.16245999,96011.0,96000.0,0.15658494]
[1735227147243,0.052135,96006.0,96000.0,0.15358494]
[1735227147431,0.052135,96004.0,96001.0,0.003]
[1735227147843,0.052135,96004.0,95986.0,0.18532491]
[1735227148041,0.052135,96004.0,96000.0,0.004]
[1735227148242,0.313,96004.0,95986.0,0.18532491]
[1735227148439,0.052141,95993.0,95986.0,0.18532491]
[1735227148638,0.052136,96003.0,95986.0,0.18532491]
[1735227148838,0.052141,95994.0,95986.0,0.18532491]
[1735227149037,0.052141,95994.0,95984.0,0.0516152]
[1735227149237,0.052141,95994.0,95981.0,0.00156264]
[1735227149433,0.050141,95994.0,95964.0,0.24713864]
[1735227149631,0.050141,95994.0,95986.0,0.001]
[1735227150246,0.18694472,96012.0,95986.0,0.001]
[1735227150543,0.18694472,96012.0,95987.0,0.9392]
[1735227150732,0.052129,96017.0,95987.0,0.9392]
[1735227150733,0.18694472,96003.0,95987.0,0.9392]
[1735227151441,0.001,95994.0,95987.0,0.9392]
[1735227151742,0.001,95994.0,95987.0,0.6296]
[1735227151941,0.001,95994.0,95986.0,0.05335656]
[1735227152138,0.001,95994.0,95976.0,0.316]
[1735227153743,0.001,95994.0,95980.0,0.16245999]
[1735227153945,0.001,95994.0,95982.0,0.052147]
[1735227154242,0.001,95994.0,95977.0,0.05215]
[1735227154448,0.16245999,96010.0,95979.0,0.052149]
[1735227154655,0.46245999,96010.0,95979.0,0.052149]
[1735227155143,0.052129,96017.0,95980.0,0.052148]
[1735227155351,0.3,96017.0,95986.0,0.052145]
[1735227155549,0.3,96017.0,95987.0,0.3117]
[1735227156552,0.16245999,96010.0,95987.0,0.3117]
[1735227156943,0.46245999,96010.0,95987.0,0.3117]
[1735227157852,0.302,96010.0,95987.0,0.3117]
[1735227158545,0.302,96010.0,95971.0,0.6727644]
[1735227158756,0.46445999,96010.0,95971.0,0.3721644]
[1735227158943,0.46545999,96010.0,95979.0,0.052149]
[1735227159557,0.303,96010.0,95979.0,0.052149]
[1735227159748,0.3,96010.0,95979.0,0.052149]
[1735227159954,0.301,96010.0,95980.0,0.21460799]
[1735227160357,0.3,96010.0,95980.0,0.21460799]
[1735227160750,0.3,96010.0,95980.0,0.052148]
[1735227160951,0.3,96010.0,95980.0,0.053148]
[1735227161254,0.46245999,96010.0,95980.0,0.001]
[1735227161460,0.21459799,96000.0,95980.0,0.001]
[1735227161658,0.6145,95999.0,95980.0,0.001]
[1735227161893,0.9145,95999.0,95980.0,0.001]
[1735227162255,0.08694259,95990.0,95980.0,0.001]
[1735227162457,0.3091,95989.0,95960.0,0.0633814]
[1735227162658,0.3091,95989.0,95980.0,0.001]
[1735227162855,0.6091,95989.0,95980.0,0.001]
[1735227163260,0.052145,95987.0,95980.0,0.001]
[1735227163456,0.61002,95989.0,95980.0,0.001]
[1735227163664,0.61002,95989.0,95960.0,0.05331241]
[1735227163665,0.08694259,95971.0,95960.0,0.05331241]
[1735227163963,0.052148,95982.0,95956.0,0.0015628]
[1735227163964,0.08694259,95980.0,95956.0,0.0015628]
[1735227164161,0.2932,95970.0,95944.0,0.13550878]
[1735227164363,0.3061,95969.0,95946.0,0.052167]
[1735227164564,0.3061,95969.0,95947.0,0.04073215]
[1735227164858,0.3061,95969.0,95944.0,0.13550878]
[1735227164859,0.6061,95969.0,95944.0,0.13550878]
[1735227165061,0.6061,95969.0,95944.0,0.18718923]
[1735227165559,0.6071,95969.0,95944.0,0.18718923]
[1735227165865,0.6071,95969.0,95945.0,0.04074389]
[1735227166061,0.6071,95969.0,95940.0,0.08694259]
[1735227166262,0.6071,95969.0,95941.0,0.09168152]
[1735227166263,0.16313091,95950.0,95941.0,0.09168152]
[1735227166451,0.16313091,95950.0,95941.0,0.05092443]
[1735227166657,0.3132,95949.0,95916.0,0.43265321]
[1735227166856,0.36113501,95969.0,95941.0,0.052169]
[1735227166857,0.3081,95969.0,95941.0,0.052169]
[1735227167057,0.6071,95969.0,95939.0,0.16313091]
[1735227167259,0.16313091,95960.0,95933.0,0.234973]
[1735227167557,0.16313091,95950.0,95931.0,0.00800302]
[1735227167758,0.297,95949.0,95931.0,0.00800302]
[1735227168163,0.3124,95948.0,95931.0,0.00800302]
[1735227168572,0.6124,95948.0,95931.0,0.00800302]
[1735227169566,0.6134,95948.0,95931.0,0.00800302]
[1735227170472,0.6144,95948.0,95931.0,0.00800302]
[1735227171069,0.16313091,95941.0,95931.0,0.00800302]
[1735227171272,0.6144,95948.0,95931.0,0.00800302]
[1735227171678,0.16313091,95941.0,95931.0,0.00800302]
[1735227172064,0.46313091,95941.0,95931.0,0.00800302]
[1735227172375,0.46313091,95941.0,95924.0,0.05340502]
[1735227172776,0.3,95941.0,95924.0,0.05340502]
[1735227173173,0.3134,95948.0,95920.0,0.16313091]
[1735227173377,0.17492947,95948.0,95934.0,0.052173]
[1735227173974,0.001,95941.0,95920.0,0.16313091]
[1735227174370,0.17392947,95948.0,95920.0,0.052181]
[1735227174675,0.47492947,95948.0,95910.0,0.16313091]
[1735227174876,0.47492947,95948.0,95924.0,0.052178]
[1735227175064,0.17492947,95948.0,95930.0,0.21530591]
[1735227175274,0.17492947,95948.0,95877.0,0.052204]
[1735227175275,0.47492947,95948.0,95902.0,0.35036]
[1735227175574,0.47492947,95948.0,95920.0,0.16313091]
[1735227175779,8.969e-05,95947.0,95920.0,0.16313091]
[1735227175983,0.001,95941.0,95924.0,0.052179]
[1735227176680,8.969e-05,95947.0,95924.0,0.052179]
[1735227176980,0.30008969,95947.0,95924.0,0.052179]
[1735227177165,0.001,95941.0,95920.0,0.16313091]
[1735227177371,0.001,95941.0,95928.0,0.052176]
[1735227178177,0.001,95941.0,95910.0,0.16313091]
[1735227178375,0.001,95941.0,95918.0,0.052182]
[1735227178676,0.001,95941.0,95900.0,0.16313091]
[1735227178881,8.969e-05,95947.0,95920.0,0.052181]
[1735227179078,0.30108969,95947.0,95920.0,0.052181]
[1735227179285,0.16313091,95940.0,95920.0,0.052181]
[1735227179476,7.463e-05,95939.0,95920.0,0.052181]
[1735227179881,0.30007463,95939.0,95912.0,0.052185]
[1735227180175,0.16313091,95930.0,95912.0,0.052185]
[1735227180482,0.30508001,95929.0,95912.0,0.052185]
[1735227180780,0.2951,95928.0,95912.0,0.052185]
[1735227181183,0.3028,95927.0,95900.0,0.16313091]
[1735227181376,0.3028,95927.0,95915.0,0.052183]
[1735227182783,0.3038,95927.0,95893.0,0.052195]
[1735227182982,0.3038,95927.0,95894.0,0.04071096]
[1735227183525,0.3038,95927.0,95893.0,0.05316586]
[1735227183679,0.3038,95927.0,95901.0,0.052191]